fUSD/lending_fUSD_20240116
["ID","MTS","AMOUNT","RATE_DAILY","PERIOD"]
[311738228,1705371047817,-1794.95,0.00022176,2]
[311738230,1705371047827,-500.0,0.00022176,2]
[311738232,1705371047836,-500.0,0.00022176,2]
[311738234,1705371047845,-785.25,0.00022176,2]
[311738236,1705371047854,-932.92,0.00022176,2]
[311738237,1705371047863,-500.0,0.00022176,2]
[311738240,1705371047872,-3177.12,0.00022176,2]
[311738242,1705371047882,-500.0,0.00022176,2]
[311738244,1705371047891,-816.86,0.00022176,2]
[311738246,1705371047900,-500.0,0.00022176,2]
[311738248,1705371047909,-500.0,0.00022176,2]
[311738250,1705371047918,-500.0,0.00022176,2]
[311738252,1705371047927,-3276.28,0.00022176,2]
[311738254,1705371047937,-916.12,0.00022176,2]
[311738256,1705371047946,-622.77,0.00022176,2]
[311738258,1705371047960,-18699.77,0.00022176,2]
[311738260,1705371047970,-500.0,0.00022176,2]
[311738262,1705371047979,-801.51,0.00022176,2]
[311738264,1705371047988,-556.82,0.00022176,2]
[311738266,1705371047998,-235.66369284,0.00022176,2]
[311738268,1705371048008,-619.24,0.00022176,2]
[311738270,1705371048017,-500.0,0.00022176,2]
[311738272,1705371048028,-500.0,0.00022176,2]
[311738274,1705371048038,-855.33,0.00022176,2]
[311738276,1705371048048,-2021.11,0.00022176,2]
[311738278,1705371048059,-500.0,0.00022176,2]
[311738280,1705371048069,-500.0,0.00022176,2]
[311738282,1705371048079,-848.97,0.00022176,2]
[311738284,1705371048089,-500.0,0.00022176,2]
[311738286,1705371048099,-500.0,0.00022176,2]
[311738289,1705371048110,-787.12,0.00022176,2]
[311738290,1705371048119,-500.0,0.00022176,2]
[311738293,1705371048129,-611.55,0.00022176,2]
[311738294,1705371048139,-949.23,0.00022176,2]
[311738297,1705371048149,-500.0,0.00022176,2]
[311738299,1705371048160,-1307.17,0.00022176,2]
[311738300,1705371048171,-344.24379856,0.00022176,2]
[311738301,1705371048180,-500.0,0.00022176,2]
[311738302,1705371048190,-500.0,0.00022176,2]
[311738303,1705371048199,-500.0,0.00022176,2]
[311738304,1705371048211,-500.0,0.00022176,2]
[311738305,1705371048221,-655.62,0.00022176,2]
[311738306,1705371048231,-537.31812021,0.00022176,2]
[311738307,1705371048242,-972.52,0.00022176,2]
[311738309,1705371048251,-500.0,0.00022176,2]
[311738311,1705371048261,-500.0,0.00022176,2]
[311738313,1705371048271,-1145.96,0.00022176,2]
[311738315,1705371048281,-500.0,0.00022176,2]
[311738318,1705371048290,-729.92,0.00022176,2]
[311738320,1705371048300,-500.0,0.00022176,2]
[311738321,1705371048311,-806.12,0.00022176,2]
[311738323,1705371048321,-659.78,0.00022176,2]
[311738326,1705371048331,-1915.0,0.00022176,2]
[311738327,1705371048341,-500.0,0.00022176,2]
[311738329,1705371048352,-549.0,0.00022176,2]
[311738331,1705371048362,-706.93,0.00022176,2]
[311738334,1705371048372,-1343.4,0.00022176,2]
[311738335,1705371048383,-190.40993985,0.00022176,2]
[311738338,1705371048393,-1434.8,0.00022176,2]
[311738340,1705371048403,-500.0,0.00022176,2]
[311738342,1705371048413,-2695.07,0.00022176,2]
[311738343,1705371048423,-500.0,0.00022176,2]
[311738346,1705371048432,-1000.0,0.00022176,2]
[311738348,1705371048442,-1307.66,0.00022176,2]
[311738349,1705371048451,-500.0,0.00022176,2]
[311738352,1705371048461,-959.48,0.00022176,2]
[311738354,1705371048474,-500.0,0.00022176,2]
[311738356,1705371048483,-539.08,0.00022177,2]
[311738358,1705371048493,-500.0,0.00022177,2]
[311738360,1705371048503,-500.0,0.00022177,2]
[311738362,1705371048512,-500.0,0.00022177,2]
[311738364,1705371048521,-549.32,0.00022177,2]
[311738366,1705371048531,-500.0,0.00022177,2]
[311738368,1705371048541,-504.31,0.00022177,2]
[311738370,1705371048549,-500.0,0.00022177,2]
[311738372,1705371048559,-300.0,0.00022177,2]
[311738374,1705371048568,-500.0,0.00022177,2]
[311738377,1705371048578,-500.0,0.00022177,2]
[311738379,1705371048587,-748.18,0.00022177,2]
[311738381,1705371048597,-512.69,0.00022177,2]
[311738383,1705371048606,-500.0,0.00022177,2]
[311738385,1705371048616,-500.0,0.00022177,2]
[311738387,1705371048625,-500.0,0.00022177,2]
[311738389,1705371048635,-438.87464679,0.00022177,2]
[311738391,1705371048644,-500.0,0.00022177,2]
[311738393,1705371048653,-510.67,0.00022177,2]
[311738395,1705371048662,-719.96,0.00022177,2]
[311738397,1705371048673,-500.0,0.00022177,2]
[311738399,1705371048684,-192.07237849,0.00022177,2]
[311738401,1705371048692,-500.0,0.00022177,2]
[311738403,1705371048702,-1000.0,0.00022177,2]
[311738405,1705371048713,-647.49,0.00022177,2]
[311738407,1705371048723,-500.0,0.00022177,2]
[311738409,1705371048733,-506.49523854,0.00022177,2]
[311738411,1705371048742,-500.0,0.00022177,2]
[311738412,1705371048751,-500.0,0.00022177,2]
[311738413,1705371048761,-693.57,0.00022177,2]
[311738414,1705371048771,-769.29,0.00022177,2]
[311738415,1705371048780,-500.0,0.00022177,2]
[311738416,1705371048789,-500.0,0.00022177,2]
[311738417,1705371048798,-737.46,0.00022177,2]
[311738419,1705371048807,-500.0,0.00022177,2]
[311738421,1705371048817,-500.0,0.00022177,2]
[311738423,1705371048826,-500.0,0.00022177,2]
[311738425,1705371048835,-500.0,0.00022177,2]
[311738427,1705371048844,-500.0,0.00022177,2]
[311738429,1705371048854,-500.0,0.00022177,2]
[311738431,1705371048864,-693.01,0.00022177,2]
[311738433,1705371048874,-500.0,0.00022177,2]
[311738435,1705371048883,-611.45,0.00022177,2]
[311738436,1705371048893,-500.0,0.00022177,2]
[311738437,1705371048902,-599.48,0.00022177,2]
[311738438,1705371048912,-535.15,0.00022177,2]
[311738439,1705371048923,-776.41,0.00022177,2]
[311738440,1705371048933,-500.0,0.00022177,2]
[311738441,1705371048943,-419.89388479,0.00022177,2]
[311738442,1705371048952,-500.0,0.00022177,2]
[311738443,1705371048965,-500.0,0.00022177,2]
[311738444,1705371048975,-523.2,0.00022177,2]
[311738445,1705371048985,-500.0,0.00022177,2]
[311738446,1705371048994,-500.0,0.00022177,2]
[311738447,1705371049004,-500.0,0.00022177,2]
[311738448,1705371049014,-500.0,0.00022177,2]
[311738449,1705371049024,-721.7,0.00022177,2]
[311738450,1705371049035,-500.0,0.00022177,2]
[311738451,1705371049044,-872.17,0.00022177,2]
[311738452,1705371049054,-575.58,0.00022177,2]
[311738453,1705371049063,-533.2,0.00022177,2]
[311738454,1705371049073,-500.0,0.00022177,2]
[311738455,1705371049083,-500.0,0.00022177,2]
[311738457,1705371049092,-500.0,0.00022177,2]
[311738458,1705371049102,-712.67,0.00022177,2]
[311738461,1705371049112,-931.08,0.00022177,2]
[311738463,1705371049122,-500.0,0.00022177,2]
[311738465,1705371049132,-500.0,0.00022177,2]
[311738467,1705371049143,-798.47,0.00022177,2]
[311738469,1705371049153,-500.0,0.00022177,2]
[311738471,1705371049163,-500.0,0.00022177,2]
[311738473,1705371049172,-500.0,0.00022177,2]
[311738474,1705371049182,-1171.75,0.00022177,2]
[311738477,1705371049193,-560.65,0.00022177,2]
[311738478,1705371049203,-500.0,0.00022177,2]
[311738479,1705371049214,-500.0,0.00022177,2]
[311738480,1705371049224,-500.0,0.00022177,2]
[311738481,1705371049233,-491.11127023,0.00022177,2]
[311738482,1705371049243,-1073.8,0.00022177,2]
[311738483,1705371049253,-500.0,0.00022177,2]
[311738484,1705371049263,-777.54,0.00022177,2]
[311738486,1705371049273,-500.0,0.00022177,2]
[311738488,1705371049282,-769.19,0.00022177,2]
[311738489,1705371049291,-500.0,0.00022177,2]
[311738490,1705371049301,-500.0,0.00022177,2]
[311738491,1705371049311,-500.0,0.00022177,2]
[311738492,1705371049321,-500.0,0.00022177,2]
[311738493,1705371049331,-627.3,0.00022177,2]
[311738494,1705371049340,-500.0,0.00022177,2]
[311738495,1705371049349,-693.9,0.00022177,2]
[311738496,1705371049359,-607.6,0.00022177,2]
[311738497,1705371049369,-500.0,0.00022177,2]
[311738498,1705371049378,-786.35,0.00022177,2]
[311738499,1705371049387,-165.93122371,0.00022177,2]
[311738500,1705371049396,-500.0,0.00022177,2]
[311738501,1705371049405,-500.0,0.00022177,2]
[311738502,1705371049415,-662.01,0.00022177,2]
[311738503,1705371049424,-500.0,0.00022177,2]
[311738504,1705371049434,-546.46,0.00022177,2]
[311738505,1705371049443,-1229.25,0.00022177,2]
[311738506,1705371049452,-500.0,0.00022177,2]
[311738507,1705371049462,-500.0,0.00022177,2]
[311738508,1705371049471,-1333.29,0.00022177,2]
[311738509,1705371049481,-500.0,0.00022177,2]
[311738510,1705371049490,-1083.85,0.00022177,2]
[311738511,1705371049500,-570.9,0.00022177,2]
[311738512,1705371049509,-1129.06,0.00022177,2]
[311738513,1705371049519,-500.0,0.00022177,2]
[311738514,1705371049528,-500.0,0.00022177,2]
[311738515,1705371049537,-500.0,0.00022177,2]
[311738516,1705371049547,-974.15,0.00022177,2]
[311738517,1705371049556,-530.38,0.00022177,2]
[311738518,1705371049565,-500.0,0.00022177,2]
[311738519,1705371049575,-830.83,0.00022177,2]
[311738520,1705371049584,-878.33,0.00022177,2]
[311738521,1705371049593,-500.0,0.00022177,2]
[311738522,1705371049603,-730.09,0.00022177,2]
[311738523,1705371049613,-1224.09,0.00022177,2]
[311738524,1705371049622,-500.0,0.00022177,2]
[311738525,1705371049630,-500.0,0.00022177,2]
[311738526,1705371049640,-549.36245042,0.00022177,2]
[311738527,1705371049650,-500.0,0.00022177,2]
[311738528,1705371049659,-3426.97,0.00022177,2]
[311738529,1705371049668,-500.0,0.00022177,2]
[311738530,1705371049679,-221.06803862,0.00022177,2]
[311738531,1705371049690,-909.86,0.00022177,2]
[311738532,1705371049701,-500.0,0.00022177,2]
[311738533,1705371049711,-500.0,0.00022177,2]
[311738534,1705371049722,-500.0,0.00022177,2]
[311738535,1705371049732,-3387.28,0.00022177,2]
[311738536,1705371049743,-807.4,0.00022177,2]
[311738537,1705371049753,-500.0,0.00022177,2]
[311738538,1705371049764,-926.13,0.00022177,2]
[311738539,1705371049775,-538.61,0.00022177,2]
[311738540,1705371049786,-500.0,0.00022177,2]
[311738541,1705371049800,-500.0,0.00022177,2]
[311738542,1705371049812,-766.72,0.00022177,2]
[311738543,1705371049823,-500.0,0.00022177,2]
[311738544,1705371049834,-781.69,0.00022177,2]
[311738545,1705371049845,-529.31391837,0.00022177,2]
[311738546,1705371049856,-870.19,0.00022177,2]
[311738547,1705371049866,-1178.91,0.00022177,2]
[311738548,1705371049881,-500.0,0.00022177,2]
[311738549,1705371049892,-640.19,0.00022177,2]
[311738550,1705371049903,-500.0,0.00022177,2]
[311738551,1705371049914,-703.48,0.00022177,2]
[311738552,1705371049925,-500.0,0.00022177,2]
[311738553,1705371049936,-500.0,0.00022177,2]
[311738554,1705371049947,-500.0,0.00022177,2]
[311738555,1705371049958,-500.0,0.00022177,2]
[311738556,1705371049969,-500.0,0.00022177,2]
[311738557,1705371049980,-500.0,0.00022177,2]
[311738558,1705371049991,-500.0,0.00022177,2]
[311738559,1705371050002,-697.6,0.00022177,2]
[311738560,1705371050013,-500.0,0.00022177,2]
[311738561,1705371050024,-500.0,0.00022177,2]
[311738562,1705371050035,-591.99,0.00022177,2]
[311738563,1705371050046,-500.0,0.00022177,2]
[311738564,1705371050057,-500.0,0.00022177,2]
[311738565,1705371050067,-643.8,0.00022177,2]
[311738566,1705371050078,-256.237085,0.00022177,2]
[311738567,1705371050088,-514.47179954,0.00022177,2]
[311738568,1705371050099,-1411.49,0.00022177,2]
[311738569,1705371050110,-500.0,0.00022177,2]
[311738570,1705371050121,-500.0,0.00022177,2]
[311738571,1705371050132,-500.0,0.00022177,2]
[311738572,1705371050142,-500.0,0.00022177,2]
[311738573,1705371050153,-500.0,0.00022177,2]
[311738574,1705371050164,-570.66,0.00022177,2]
[311738575,1705371050174,-730.52,0.00022177,2]
[311738576,1705371050185,-500.0,0.00022177,2]
[311738577,1705371050195,-500.0,0.00022177,2]
[311738578,1705371050206,-1086.56,0.00022177,2]
[311738579,1705371050218,-500.0,0.00022177,2]
[311738580,1705371050229,-500.0,0.00022177,2]
[311738581,1705371050239,-500.0,0.00022177,2]
[311738582,1705371050250,-1511.6,0.00022177,2]
[311738583,1705371050261,-500.0,0.00022177,2]
[311738584,1705371050272,-514.09,0.00022177,2]
[311738585,1705371050282,-710.37,0.00022177,2]
[311738586,1705371050293,-500.0,0.00022177,2]
[311738587,1705371050303,-500.0,0.00022177,2]
[311738588,1705371050314,-500.0,0.00022177,2]
[311738589,1705371050325,-1130.1,0.00022177,2]
[311738590,1705371050335,-500.0,0.00022177,2]
[311738591,1705371050346,-500.0,0.00022177,2]
[311738592,1705371050356,-500.0,0.00022177,2]
[311738593,1705371050367,-560.32,0.00022177,2]
[311738594,1705371050377,-500.0,0.00022177,2]
[311738595,1705371050388,-793.36,0.00022177,2]
[311738596,1705371050399,-500.0,0.00022177,2]
[311738597,1705371050409,-500.0,0.00022177,2]
[311738598,1705371050420,-773.25,0.00022177,2]
[311738599,1705371050431,-500.0,0.00022178,2]
[311738600,1705371050442,-455.82771289,0.00022178,2]
[311738601,1705371050452,-13480.8,0.00022179,2]
[311738602,1705371050464,-180.0,0.0002218,2]
[311738603,1705371050475,-164.5474137,0.0002218,2]
[311738604,1705371050486,-2285.87837173,0.00022181,2]
[311738605,1705371050498,-291.271747,0.00022183,2]
[311738606,1705371050508,-1305.80125757,0.00022183,2]
[311738607,1705371050519,-5428.16343677,0.00022183,2]
[311738608,1705371050530,-331.66737498,0.00022183,2]
[311738609,1705371050541,-195.79699996,0.00022183,2]
[311738610,1705371050552,-214.46875848,0.00022183,2]
[311738611,1705371050564,-398.76009125,0.00022183,2]
[311738612,1705371050574,-1039.94849449,0.00022183,2]
[311738613,1705371050585,-1593.80755805,0.00022183,2]
[311738614,1705371050596,-728.70314518,0.00022183,2]
[311738615,1705371050608,-731.92,0.00022187,2]
[311738616,1705371050619,-12177.6422606,0.0002219,2]
[311738617,1705371050629,-374.5866084,0.0002219,2]
[311738618,1705371050640,-4059.9785428,0.0002219,2]
[311738619,1705371050650,-1304.6844959,0.00022205,2]
[311738620,1705371050661,-151.85,0.0002222,2]
[311738621,1705371050672,-590.04,0.00022227,2]
[311738622,1705371050685,-152.63,0.0002225,2]
[311738623,1705371050696,-829.67866707,0.00022261,2]
[311738624,1705371050706,-172.61,0.00022264,10]
[311738625,1705371050719,-408.31,0.000223,2]
[311738626,1705371050730,-418.16,0.000223,2]
[311738627,1705371050740,-314.4,0.000223,2]
[311738628,1705371050751,-294.16,0.000223,2]
[311738629,1705371050763,-150.0,0.000223,2]
[311738630,1705371050774,-150.0,0.000223,2]
[311738631,1705371050785,-150.0,0.000223,2]
[311738632,1705371050796,-954.46,0.000223,2]
[311738633,1705371050807,-728.70314518,0.00022303,2]
[311738634,1705371050820,-170.00428549,0.00022349,2]
[311738635,1705371050831,-151.85,0.00022353,2]
[311738636,1705371050843,-1173.54187285,0.0002239,2]
[311738637,1705371050854,-418.16,0.000224,2]
[311738638,1705371050866,-388.74,0.000224,2]
[311738639,1705371050877,-150.0,0.000224,2]
[311738640,1705371050895,-314.4,0.000224,2]
[311738641,1705371050913,-408.31,0.000224,2]
[311738642,1705371050929,-294.16,0.000224,2]
[311738643,1705371050945,-418.16,0.000224,2]
[311738644,1705371050958,-408.31,0.000224,2]
[311738645,1705371050978,-314.4,0.000224,2]
[311738646,1705371050994,-150.0,0.000224,2]
[311738647,1705371051011,-294.16,0.000224,2]
[311738648,1705371051027,-150.0,0.000224,2]
[311738649,1705371051042,-418.16,0.000224,2]
[311738650,1705371051055,-420.29,0.000224,2]
[311738651,1705371051067,-294.16,0.000224,2]
[311738652,1705371051085,-314.4,0.000224,2]
[311738653,1705371051098,-408.12,0.000224,2]
[311738654,1705371051112,-314.4,0.000224,2]
[311738655,1705371051126,-294.16,0.000224,2]
[311738656,1705371051141,-418.16,0.000224,2]
[311738657,1705371051155,-815.76,0.000224,2]
[311738658,1705371051165,-294.16,0.000224,2]
[311738659,1705371051182,-418.16,0.000224,2]
[311738660,1705371051195,-314.4,0.000224,2]
[311738661,1705371051214,-418.16,0.000224,2]
[311738662,1705371051230,-314.4,0.000224,2]
[311738663,1705371051243,-294.16,0.000224,2]
[311738664,1705371051258,-1416.0,0.00022412,2]
[311738665,1705371051272,-152.63,0.00022414,2]
[311738666,1705371051288,-728.70314518,0.00022422,2]
[311738667,1705371051304,-205.0,0.00022428,2]
[311738668,1705371051319,-155.89,0.0002243,2]
[311738669,1705371051330,-1095.95,0.00022437,2]
[311738670,1705371051342,-647.11,0.00022437,2]
[311738671,1705371051354,-3799.98,0.00022438,2]
[311738672,1705371051367,-677.87,0.00022438,2]
[311738673,1705371051380,-500.0,0.00022438,2]
[311738674,1705371051392,-567.6,0.00022438,2]
[311738675,1705371051409,-760.92,0.00022438,2]
[311738676,1705371051422,-796.58,0.00022438,2]
[311738677,1705371051433,-15787.94,0.00022438,2]
[311738678,1705371051445,-1376.52,0.00022438,2]
[311738679,1705371051461,-1384.44,0.00022438,2]
[311738680,1705371051477,-1148.4,0.0002244,2]
[311738681,1705371051492,-2387.74,0.0002244,2]
[311738682,1705371051505,-500.0,0.0002244,2]
[311738683,1705371051519,-1967.67,0.0002244,2]
[311738684,1705371051533,-1307.79,0.0002244,2]
[311738685,1705371051546,-1403.11,0.0002244,2]
[311738686,1705371051560,-3318.99,0.0002244,2]
[311738687,1705371051574,-1547.62,0.0002244,2]
[311738688,1705371051589,-1566.42,0.0002244,2]
[311738689,1705371051602,-1757.6,0.0002244,2]
[311738690,1705371051615,-2460.15,0.00022441,2]
[311738691,1705371051628,-3819.59,0.00022441,2]
[311738692,1705371051641,-917.34,0.00022441,2]
[311738693,1705371051654,-1336.75,0.00022441,2]
[311738694,1705371051667,-1788.68,0.00022441,2]
[311738695,1705371051679,-1136.99,0.00022441,2]
[311738696,1705371051692,-1044.24,0.00022441,2]
[311738697,1705371051705,-1999.04,0.00022441,2]
[311738698,1705371051722,-942.35,0.00022441,2]
[311738699,1705371051734,-676.81,0.00022441,2]
[311738700,1705371051748,-500.0,0.00022441,5]
[311738701,1705371051761,-998.52,0.00022441,2]
[311738702,1705371051774,-4708.11,0.00022441,2]
[311738703,1705371051786,-26632.93,0.00022441,2]
[311738704,1705371051798,-9449.3,0.00022441,2]
[311738705,1705371051811,-2136.99,0.00022441,2]
[311738706,1705371051823,-14211.24,0.00022441,2]
[311738707,1705371051835,-500.0,0.00022441,2]
[311738708,1705371051848,-3297.37,0.00022441,2]
[311738709,1705371051862,-1286.7,0.00022441,2]
[311738710,1705371051875,-2175.33,0.00022441,2]
[311738711,1705371051888,-1576.36,0.00022441,2]
[311738712,1705371051900,-1881.27,0.00022441,2]
[311738713,1705371051913,-740.69,0.00022441,2]
[311738714,1705371051937,-894.94,0.00022441,2]
[311738715,1705371051950,-8119.55,0.00022441,2]
[311738716,1705371051964,-1852.13,0.00022441,2]
[311738717,1705371051979,-1722.56,0.00022441,2]
[311738718,1705371051991,-548.95,0.00022441,2]
[311738719,1705371052004,-1509.09,0.00022441,2]
[311738720,1705371052016,-825.03,0.00022441,2]
[311738721,1705371052029,-300.0,0.00022444,2]
[311738722,1705371052042,-300.0,0.00022444,2]
[311738723,1705371052056,-500.0,0.00022445,2]
[311738724,1705371052069,-500.0,0.00022445,2]
[311738725,1705371052081,-541.28,0.00022445,2]
[311738726,1705371052092,-500.0,0.00022445,2]
[311738727,1705371052104,-500.0,0.00022445,2]
[311738728,1705371052116,-500.0,0.00022445,2]
[311738729,1705371052128,-544.11,0.00022445,2]
[311738730,1705371052141,-500.0,0.00022445,2]
[311738731,1705371052153,-1697.37,0.00022445,2]
[311738732,1705371052165,-500.0,0.00022445,2]
[311738733,1705371052177,-740.7,0.00022445,2]
[311738734,1705371052189,-500.0,0.00022445,2]
[311738735,1705371052201,-500.0,0.00022445,2]
[311738736,1705371052215,-500.0,0.00022445,2]
[311738737,1705371052227,-974.55,0.00022445,2]
[311738738,1705371052239,-500.0,0.00022445,2]
[311738739,1705371052252,-916.18,0.00022445,2]
[311738740,1705371052264,-762.78,0.00022445,2]
[311738741,1705371052275,-500.0,0.00022445,2]
[311738742,1705371052288,-771.15,0.00022445,2]
[311738743,1705371052299,-500.0,0.00022445,2]
[311738744,1705371052312,-810.6,0.00022445,2]
[311738745,1705371052324,-500.0,0.00022445,2]
[311738746,1705371052336,-500.0,0.00022445,2]
[311738747,1705371052349,-500.0,0.00022445,2]
[311738748,1705371052362,-1215.22,0.00022445,2]
[311738749,1705371052374,-500.0,0.00022445,2]
[311738750,1705371052385,-622.68,0.00022445,2]
[311738751,1705371052397,-500.0,0.00022445,2]
[311738752,1705371052410,-1034.07,0.00022445,2]
[311738753,1705371052422,-500.0,0.00022445,2]
[311738754,1705371052434,-504.69,0.00022445,2]
[311738755,1705371052446,-666.81,0.00022445,2]
[311738756,1705371052458,-500.0,0.00022445,2]
[311738757,1705371052473,-500.0,0.00022445,2]
[311738758,1705371052485,-500.0,0.00022445,2]
[311738759,1705371052497,-500.0,0.00022445,2]
[311738760,1705371052509,-500.0,0.00022445,2]
[311738761,1705371052521,-562.63,0.00022445,2]
[311738762,1705371052533,-629.46,0.00022445,2]
[311738763,1705371052545,-612.37,0.00022445,2]
[311738764,1705371052557,-500.0,0.00022445,2]
[311738765,1705371052569,-500.0,0.00022445,2]
[311738766,1705371052580,-657.08,0.00022445,2]
[311738767,1705371052592,-500.0,0.00022445,2]
[311738768,1705371052604,-963.76,0.00022445,2]
[311738769,1705371052616,-500.0,0.00022445,2]
[311738770,1705371052628,-1183.84,0.00022445,2]
[311738771,1705371052639,-500.0,0.00022445,2]
[311738772,1705371052651,-500.0,0.00022445,2]
[311738773,1705371052663,-755.51,0.00022445,2]
[311738774,1705371052675,-557.68,0.00022445,2]
[311738775,1705371052690,-500.0,0.00022445,2]
[311738776,1705371052702,-500.0,0.00022445,2]
[311738777,1705371052714,-500.0,0.00022445,2]
[311738778,1705371052727,-844.43,0.00022445,2]
[311738779,1705371052739,-500.0,0.00022445,2]
[311738780,1705371052751,-830.77,0.00022445,2]
[311738781,1705371052763,-503.32,0.00022445,2]
[311738782,1705371052775,-518.35184067,0.00022445,2]
[311738783,1705371052788,-647.14,0.00022445,2]
[311738784,1705371052801,-500.0,0.00022445,2]
[311738785,1705371052814,-569.95,0.00022445,2]
[311738786,1705371052825,-772.86,0.00022445,2]
[311738787,1705371052836,-158.38637891,0.00022445,2]
[311738788,1705371052848,-500.0,0.00022445,2]
[311738789,1705371052860,-500.0,0.00022445,2]
[311738790,1705371052872,-500.0,0.00022445,2]
[311738791,1705371052883,-728.18,0.00022445,2]
[311738792,1705371052895,-500.0,0.00022445,2]
[311738793,1705371052907,-500.0,0.00022445,2]
[311738794,1705371052919,-500.0,0.00022445,2]
[311738795,1705371052931,-500.0,0.00022445,2]
[311738796,1705371052943,-661.57,0.00022445,2]
[311738797,1705371052954,-644.26,0.00022445,2]
[311738798,1705371052967,-648.63,0.00022445,2]
[311738799,1705371052980,-500.0,0.00022445,2]
[311738800,1705371052991,-500.0,0.00022445,2]
[311738801,1705371053004,-762.04,0.00022445,2]
[311738802,1705371053016,-540.53,0.00022445,2]
[311738803,1705371053028,-500.0,0.00022445,2]
[311738804,1705371053040,-631.24,0.00022445,2]
[311738805,1705371053052,-500.0,0.00022445,2]
[311738806,1705371053064,-609.23,0.00022445,2]
[311738807,1705371053083,-500.0,0.00022445,2]
[311738808,1705371053095,-574.3,0.00022445,2]
[311738809,1705371053107,-500.0,0.00022445,2]
[311738810,1705371053118,-500.0,0.00022445,2]
[311738811,1705371053130,-500.0,0.00022445,2]
[311738812,1705371053142,-703.69,0.00022445,2]
[311738813,1705371053154,-500.0,0.00022445,2]
[311738814,1705371053166,-500.0,0.00022445,2]
[311738815,1705371053177,-770.8,0.00022445,2]
[311738816,1705371053189,-1420.47,0.00022445,2]
[311738817,1705371053202,-518.12,0.00022445,2]
[311738818,1705371053216,-275.07711272,0.00022445,2]
[311738819,1705371053227,-815.52,0.00022445,2]
[311738820,1705371053238,-500.0,0.00022445,2]
[311738821,1705371053250,-920.13,0.00022445,2]
[311738822,1705371053263,-554.66,0.00022445,2]
[311738823,1705371053275,-500.0,0.00022445,2]
[311738824,1705371053287,-500.0,0.00022445,2]
[311738825,1705371053299,-500.0,0.00022445,2]
[311738826,1705371053312,-500.0,0.00022445,2]
[311738827,1705371053324,-873.33,0.00022445,2]
[311738828,1705371053336,-754.71,0.00022445,2]
[311738829,1705371053347,-500.0,0.00022445,2]
[311738830,1705371053359,-719.31,0.00022445,2]
[311738831,1705371053371,-500.0,0.00022445,2]
[311738832,1705371053383,-500.0,0.00022445,2]
[311738833,1705371053395,-500.0,0.00022445,2]
[311738834,1705371053407,-623.69,0.00022445,2]
[311738835,1705371053419,-500.0,0.00022445,2]
[311738836,1705371053430,-555.54,0.00022445,2]
[311738837,1705371053442,-500.0,0.00022445,2]
[311738838,1705371053454,-500.0,0.00022445,2]